[Event "Titled Tuesday Blitz November 22 Late 2022"]
[White "Pakleza, Zbigniew"]
[Black "Feng, Eric"]
[WhiteFideId "1119290"]
[BlackFideId "30952590"]
[WhiteElo "2411"]
[BlackElo "1785"]
[Result "1-0"]
[Round "02"]
[TimeControl "180+1"]
[Date "2022.11.23"]
[WhiteClock "0:00:03"]
[BlackClock "0:00:12"]

1. d4 {[%clk 0:03:00]}  Nf6 {[%clk 0:02:55]} 2. Nf3 {[%clk 0:03:01]}  e6 {[%clk 0:02:56]} 3. Bf4 {[%clk 0:02:59]}  d5 {[%clk 0:02:55]} 4. e3 {[%clk 0:02:59]}  Bd6 {[%clk 0:02:55]} 5. Bg3 {[%clk 0:02:59]}  O-O {[%clk 0:02:56]} 6. Nbd2 {[%clk 0:02:59]}  Qe7 {[%clk 0:02:53]} 7. Bd3 {[%clk 0:02:59]}  Nbd7 {[%clk 0:02:53]} 8. Ne5 {[%clk 0:02:59]}  Ne8 {[%clk 0:02:45]} 9. f4 {[%clk 0:02:39]}  f6 {[%clk 0:02:39]} 10. Bxh7+ {[%clk 0:02:20]}  Kxh7 {[%clk 0:02:32]} 11. Qh5+ {[%clk 0:02:21]}  Kg8 {[%clk 0:02:32]} 12. Ng6 {[%clk 0:02:22]}  Qd8 {[%clk 0:02:32]} 13. Nf3 {[%clk 0:02:19]}  c5 {[%clk 0:02:18]} 14. O-O {[%clk 0:02:15]}  c4 {[%clk 0:01:33]} 15. Bh4 {[%clk 0:01:34]}  Be7 {[%clk 0:00:53]} 16. g4 {[%clk 0:01:06]}  Nd6 {[%clk 0:00:49]} 17. Nfe5 {[%clk 0:00:44]}  Nf7 {[%clk 0:00:29]} 18. Nxf7 {[%clk 0:00:35]}  Kxf7 {[%clk 0:00:28]} 19. f5 {[%clk 0:00:28]}  exf5 {[%clk 0:00:20]} 20. gxf5 {[%clk 0:00:08]}  Kg8 {[%clk 0:00:18]} 21. Rf3 {[%clk 0:00:05]}  Re8 {[%clk 0:00:18]} 22. Rg3 {[%clk 0:00:03]}  Nf8 {[%clk 0:00:14]} 23. Qh8+ {[%clk 0:00:01]}  Kf7 {[%clk 0:00:14]} 24. Ne5+ {[%clk 0:00:02]}  fxe5 {[%clk 0:00:12]} 25. Rxg7# {[%clk 0:00:03]} 1-0


[Site "https://www.chess.com"]

[Event "Titled Tuesday Blitz November 22 Late 2022"]
[White "Papp, Levente"]
[Black "Plat, Vojtech"]
[WhiteFideId "751243"]
[BlackFideId "325740"]
[WhiteElo "2380"]
[BlackElo "2514"]
[Result "0-1"]
[Round "02"]
[TimeControl "180+1"]
[Date "2022.11.22"]
[WhiteClock "0:00:15"]
[BlackClock "0:01:46"]

1. c4 {[%clk 0:03:00]}  d6 {[%clk 0:03:00]} 2. Nc3 {[%clk 0:03:00]}  e5 {[%clk 0:03:00]} 3. g3 {[%clk 0:02:59]}  Nf6 {[%clk 0:03:00]} 4. Bg2 {[%clk 0:02:59]}  Be7 {[%clk 0:02:59]} 5. e3 {[%clk 0:02:53]}  O-O {[%clk 0:02:59]} 6. Nge2 {[%clk 0:02:52]}  c6 {[%clk 0:02:59]} 7. d4 {[%clk 0:02:51]}  Nbd7 {[%clk 0:02:52]} 8. O-O {[%clk 0:02:51]}  a5 {[%clk 0:02:52]} 9. b3 {[%clk 0:02:49]}  Re8 {[%clk 0:02:52]} 10. Qc2 {[%clk 0:02:39]}  Qc7 {[%clk 0:02:51]} 11. Bb2 {[%clk 0:02:37]}  Nf8 {[%clk 0:02:51]} 12. c5 {[%clk 0:02:29]}  exd4 {[%clk 0:02:47]} 13. cxd6 {[%clk 0:02:29]}  Bxd6 {[%clk 0:02:43]} 14. Nxd4 {[%clk 0:02:29]}  Be5 {[%clk 0:02:34]} 15. Rac1 {[%clk 0:02:21]}  Ne6 {[%clk 0:02:31]} 16. Ncb5 {[%clk 0:02:00]}  cxb5 {[%clk 0:02:24]} 17. Nxe6 {[%clk 0:01:49]}  Qxc2 {[%clk 0:02:22]} 18. Rxc2 {[%clk 0:01:50]}  Rxe6 {[%clk 0:02:17]} 19. Bh3 {[%clk 0:01:49]}  Rc6 {[%clk 0:02:06]} 20. Rxc6 {[%clk 0:01:34]}  Bxh3 {[%clk 0:02:04]} 21. Rb6 {[%clk 0:01:17]}  Bxb2 {[%clk 0:02:01]} 22. Rd1 {[%clk 0:01:16]}  b4 {[%clk 0:01:55]} 23. Rxb7 {[%clk 0:01:13]}  h6 {[%clk 0:01:53]} 24. f3 {[%clk 0:01:13]}  Be6 {[%clk 0:01:52]} 25. e4 {[%clk 0:01:09]}  Bc3 {[%clk 0:01:52]} 26. Kf2 {[%clk 0:00:17]}  a4 {[%clk 0:01:52]} 27. bxa4 {[%clk 0:00:15]}  Rxa4 {[%clk 0:01:51]} 28. Ke3 {[%clk 0:00:14]}  Rxa2 {[%clk 0:01:47]} 29. f4 {[%clk 0:00:15]}  Ng4+ {[%clk 0:01:46]} 0-1


[Site "https://www.chess.com"]

[Event "Titled Tuesday Blitz November 22 Late 2022"]
[White "Pino Perez, Lazaro"]
[Black "Winterberg, Lukas"]
[WhiteFideId "3517055"]
[BlackFideId "24622702"]
[WhiteElo "2170"]
[BlackElo "2349"]
[Result "1-0"]
[Round "02"]
[TimeControl "180+1"]
[Date "2022.11.23"]
[WhiteClock "0:00:28"]
[BlackClock "0:01:20"]

1. d4 {[%clk 0:03:00]}  Nf6 {[%clk 0:02:59]} 2. Bf4 {[%clk 0:03:01]}  g6 {[%clk 0:03:00]} 3. Nc3 {[%clk 0:02:58]}  Bg7 {[%clk 0:03:01]} 4. e4 {[%clk 0:02:58]}  O-O {[%clk 0:03:02]} 5. e5 {[%clk 0:02:56]}  Ne8 {[%clk 0:03:01]} 6. Qe2 {[%clk 0:02:55]}  d6 {[%clk 0:03:01]} 7. O-O-O {[%clk 0:02:47]}  c6 {[%clk 0:02:56]} 8. h4 {[%clk 0:02:44]}  b5 {[%clk 0:02:56]} 9. h5 {[%clk 0:02:40]}  Qa5 {[%clk 0:02:52]} 10. hxg6 {[%clk 0:02:16]}  fxg6 {[%clk 0:02:53]} 11. Qe3 {[%clk 0:02:14]}  b4 {[%clk 0:02:46]} 12. Nb1 {[%clk 0:02:11]}  Qxa2 {[%clk 0:02:45]} 13. Bh6 {[%clk 0:02:07]}  Bxh6 {[%clk 0:02:14]} 14. Qxh6 {[%clk 0:02:08]}  Qf7 {[%clk 0:02:14]} 15. Nd2 {[%clk 0:01:56]}  a5 {[%clk 0:02:07]} 16. Ngf3 {[%clk 0:01:53]}  Qg7 {[%clk 0:02:08]} 17. Qh4 {[%clk 0:01:31]}  a4 {[%clk 0:01:56]} 18. Ng5 {[%clk 0:01:01]}  h6 {[%clk 0:01:51]} 19. Qxh6 {[%clk 0:00:57]}  Qxh6 {[%clk 0:01:52]} 20. Rxh6 {[%clk 0:00:56]}  a3 {[%clk 0:01:46]} 21. Bc4+ {[%clk 0:00:42]}  d5 {[%clk 0:01:46]} 22. Rdh1 {[%clk 0:00:36]}  Nf6 {[%clk 0:01:20]} 23. Rxg6# {[%clk 0:00:28]} 1-0


[Site "https://www.chess.com"]

[Event "Titled Tuesday Blitz November 22 Late 2022"]
[White "Pranav, V"]
[Black "Romanchuk, Viktor"]
[WhiteFideId "25060783"]
[BlackFideId "14109271"]
[WhiteElo "2430"]
[BlackElo "2242"]
[Result "1-0"]
[Round "02"]
[TimeControl "180+1"]
[Date "2022.11.22"]
[WhiteClock "0:02:40"]
[BlackClock "0:02:25"]

1. e4 {[%clk 0:03:00]}  e6 {[%clk 0:02:57]} 2. d4 {[%clk 0:03:00]}  d5 {[%clk 0:02:58]} 3. Nc3 {[%clk 0:03:01]}  dxe4 {[%clk 0:02:58]} 4. Nxe4 {[%clk 0:03:01]}  Nd7 {[%clk 0:02:58]} 5. Nf3 {[%clk 0:03:01]}  Ngf6 {[%clk 0:02:59]} 6. Ng3 {[%clk 0:02:58]}  c5 {[%clk 0:02:55]} 7. Bd3 {[%clk 0:02:51]}  cxd4 {[%clk 0:02:47]} 8. Nxd4 {[%clk 0:02:52]}  Bc5 {[%clk 0:02:47]} 9. Nb3 {[%clk 0:02:49]}  Be7 {[%clk 0:02:47]} 10. O-O {[%clk 0:02:49]}  O-O {[%clk 0:02:47]} 11. Re1 {[%clk 0:02:50]}  b6 {[%clk 0:02:42]} 12. Qf3 {[%clk 0:02:47]}  Rb8 {[%clk 0:02:41]} 13. Bf4 {[%clk 0:02:42]}  Bb7 {[%clk 0:02:41]} 14. Ne4 {[%clk 0:02:41]}  Rc8 {[%clk 0:02:29]} 15. Nxf6+ {[%clk 0:02:40]}  Nxf6 {[%clk 0:02:25]} 16. Qxb7 {[%clk 0:02:40]} 1-0


[Site "https://www.chess.com"]

[Event "Titled Tuesday Blitz November 22 Late 2022"]
[White "Przybylski, Wojciech"]
[Black "Floresvillar Gonzalez, Luis Migu"]
[WhiteFideId "1117599"]
[BlackFideId "5100542"]
[WhiteElo "2221"]
[BlackElo "2040"]
[Result "1-0"]
[Round "02"]
[TimeControl "180+1"]
[Date "2022.11.23"]
[WhiteClock "0:01:35"]
[BlackClock "0:01:26"]

1. e4 {[%clk 0:03:00]}  e6 {[%clk 0:02:59]} 2. d4 {[%clk 0:03:00]}  d5 {[%clk 0:02:59]} 3. Nc3 {[%clk 0:02:59]}  dxe4 {[%clk 0:02:59]} 4. Nxe4 {[%clk 0:02:59]}  Nd7 {[%clk 0:02:59]} 5. Bd3 {[%clk 0:02:58]}  Ngf6 {[%clk 0:03:00]} 6. Ne2 {[%clk 0:02:57]}  Nxe4 {[%clk 0:03:00]} 7. Bxe4 {[%clk 0:02:57]}  Nf6 {[%clk 0:02:59]} 8. Bf3 {[%clk 0:02:57]}  c5 {[%clk 0:02:56]} 9. Be3 {[%clk 0:02:53]}  cxd4 {[%clk 0:02:56]} 10. Nxd4 {[%clk 0:02:51]}  Be7 {[%clk 0:02:56]} 11. O-O {[%clk 0:02:48]}  O-O {[%clk 0:02:56]} 12. c4 {[%clk 0:02:48]}  e5 {[%clk 0:02:56]} 13. Nb5 {[%clk 0:02:44]}  a6 {[%clk 0:02:41]} 14. Nc3 {[%clk 0:02:42]}  Be6 {[%clk 0:02:35]} 15. Bxb7 {[%clk 0:02:33]}  Bxc4 {[%clk 0:02:25]} 16. Bxa8 {[%clk 0:02:28]}  Bxf1 {[%clk 0:02:24]} 17. Qxd8 {[%clk 0:02:15]}  Rxd8 {[%clk 0:02:22]} 18. Kxf1 {[%clk 0:02:05]}  Rxa8 {[%clk 0:02:20]} 19. h3 {[%clk 0:02:05]}  Kf8 {[%clk 0:02:20]} 20. Ke2 {[%clk 0:02:05]}  Rb8 {[%clk 0:02:17]} 21. Rb1 {[%clk 0:02:00]}  Ke8 {[%clk 0:02:16]} 22. a3 {[%clk 0:02:00]}  Kd7 {[%clk 0:02:10]} 23. b4 {[%clk 0:01:59]}  a5 {[%clk 0:02:08]} 24. bxa5 {[%clk 0:01:56]}  Rxb1 {[%clk 0:02:06]} 25. Nxb1 {[%clk 0:01:55]}  Kc6 {[%clk 0:02:06]} 26. Bd2 {[%clk 0:01:49]}  Ne4 {[%clk 0:02:01]} 27. Be1 {[%clk 0:01:46]}  Kb5 {[%clk 0:02:00]} 28. f3 {[%clk 0:01:44]}  Nc5 {[%clk 0:01:48]} 29. Nc3+ {[%clk 0:01:43]}  Kc4 {[%clk 0:01:45]} 30. Ne4 {[%clk 0:01:36]}  Nxe4 {[%clk 0:01:43]} 31. fxe4 {[%clk 0:01:36]}  Bxa3 {[%clk 0:01:31]} 32. a6 {[%clk 0:01:35]}  Bc5 {[%clk 0:01:26]} 33. Bf2 {[%clk 0:01:35]} 1-0


[Site "https://www.chess.com"]

[Event "Titled Tuesday Blitz November 22 Late 2022"]
[White "Rasulov, Vugar"]
[Black "Osmak, Yuliia"]
[WhiteFideId "13402390"]
[BlackFideId "14101602"]
[WhiteElo "2855"]
[BlackElo "2569"]
[Result "1-0"]
[Round "02"]
[TimeControl "180+1"]
[Date "2022.11.23"]
[WhiteClock "0:01:44"]
[BlackClock "0:00:09"]

1. e4 {[%clk 0:03:00]}  c5 {[%clk 0:02:58]} 2. c3 {[%clk 0:03:00]}  Nf6 {[%clk 0:02:55]} 3. e5 {[%clk 0:03:00]}  Nd5 {[%clk 0:02:56]} 4. Nf3 {[%clk 0:03:01]}  Nc6 {[%clk 0:02:54]} 5. d4 {[%clk 0:03:01]}  cxd4 {[%clk 0:02:54]} 6. cxd4 {[%clk 0:03:02]}  d6 {[%clk 0:02:54]} 7. Bc4 {[%clk 0:03:02]}  Nb6 {[%clk 0:02:52]} 8. Bb3 {[%clk 0:02:57]}  dxe5 {[%clk 0:02:52]} 9. d5 {[%clk 0:02:57]}  Na5 {[%clk 0:02:49]} 10. Nc3 {[%clk 0:02:57]}  f6 {[%clk 0:02:48]} 11. O-O {[%clk 0:02:55]}  g6 {[%clk 0:02:46]} 12. Be3 {[%clk 0:02:37]}  Bg7 {[%clk 0:02:44]} 13. Bc5 {[%clk 0:02:37]}  Nxb3 {[%clk 0:02:26]} 14. Qxb3 {[%clk 0:02:38]}  Bg4 {[%clk 0:01:59]} 15. Rad1 {[%clk 0:02:28]}  Bxf3 {[%clk 0:01:56]} 16. gxf3 {[%clk 0:02:29]}  Rc8 {[%clk 0:01:52]} 17. Bb4 {[%clk 0:02:27]}  Qd7 {[%clk 0:01:47]} 18. Ne4 {[%clk 0:02:17]}  O-O {[%clk 0:01:40]} 19. d6+ {[%clk 0:02:15]}  e6 {[%clk 0:01:39]} 20. Nc5 {[%clk 0:02:15]}  Rxc5 {[%clk 0:00:58]} 21. Bxc5 {[%clk 0:02:16]}  Nd5 {[%clk 0:00:56]} 22. Rxd5 {[%clk 0:02:16]}  exd5 {[%clk 0:00:56]} 23. Qxd5+ {[%clk 0:02:17]}  Kh8 {[%clk 0:00:55]} 24. Bxa7 {[%clk 0:02:15]}  Rd8 {[%clk 0:00:53]} 25. Rd1 {[%clk 0:02:08]}  Bf8 {[%clk 0:00:47]} 26. Bb6 {[%clk 0:02:02]}  Rc8 {[%clk 0:00:42]} 27. Bc7 {[%clk 0:02:00]}  b5 {[%clk 0:00:34]} 28. b4 {[%clk 0:01:56]}  h5 {[%clk 0:00:32]} 29. a4 {[%clk 0:01:47]}  bxa4 {[%clk 0:00:28]} 30. b5 {[%clk 0:01:48]}  Rxc7 {[%clk 0:00:13]} 31. dxc7 {[%clk 0:01:49]}  Qxc7 {[%clk 0:00:14]} 32. Qd8 {[%clk 0:01:49]}  Qc5 {[%clk 0:00:09]} 33. b6 {[%clk 0:01:44]} 1-0


[Site "https://www.chess.com"]

[Event "Titled Tuesday Blitz November 22 Late 2022"]
[White "Rizzo, Tobias"]
[Black "Aggelis, Nikolaos"]
[WhiteFideId "30942691"]
[BlackFideId "4213220"]
[WhiteElo "2295"]
[BlackElo "2189"]
[Result "1-0"]
[Round "02"]
[TimeControl "180+1"]
[Date "2022.11.23"]
[WhiteClock "0:00:03"]
[BlackClock "0:00:08"]

1. d4 {[%clk 0:03:00]}  d5 {[%clk 0:02:58]} 2. Bf4 {[%clk 0:03:00]}  c5 {[%clk 0:02:50]} 3. Nc3 {[%clk 0:02:59]}  Nf6 {[%clk 0:02:30]} 4. e3 {[%clk 0:02:44]}  a6 {[%clk 0:02:26]} 5. Nf3 {[%clk 0:02:35]}  Nc6 {[%clk 0:02:24]} 6. Be2 {[%clk 0:02:30]}  Qb6 {[%clk 0:02:12]} 7. Na4 {[%clk 0:02:16]}  Qa5+ {[%clk 0:02:09]} 8. c3 {[%clk 0:02:17]}  cxd4 {[%clk 0:02:09]} 9. exd4 {[%clk 0:02:01]}  Bg4 {[%clk 0:02:07]} 10. b4 {[%clk 0:01:47]}  Qd8 {[%clk 0:02:02]} 11. Nc5 {[%clk 0:01:43]}  b6 {[%clk 0:01:56]} 12. Nxa6 {[%clk 0:01:35]}  Rc8 {[%clk 0:01:45]} 13. h3 {[%clk 0:01:29]}  Bxf3 {[%clk 0:01:42]} 14. Bxf3 {[%clk 0:01:30]}  e6 {[%clk 0:01:42]} 15. O-O {[%clk 0:01:21]}  Bd6 {[%clk 0:01:37]} 16. Bxd6 {[%clk 0:01:21]}  Qxd6 {[%clk 0:01:38]} 17. b5 {[%clk 0:01:22]}  Na5 {[%clk 0:01:30]} 18. Rc1 {[%clk 0:01:03]}  O-O {[%clk 0:01:21]} 19. Re1 {[%clk 0:00:59]}  Qa3 {[%clk 0:01:16]} 20. Qc2 {[%clk 0:00:41]}  Rc4 {[%clk 0:01:10]} 21. Be2 {[%clk 0:00:37]}  Ne4 {[%clk 0:00:50]} 22. Bxc4 {[%clk 0:00:35]}  Nxc4 {[%clk 0:00:48]} 23. Qb3 {[%clk 0:00:28]}  Qd6 {[%clk 0:00:42]} 24. Nb4 {[%clk 0:00:22]}  Qf4 {[%clk 0:00:37]} 25. Qc2 {[%clk 0:00:20]}  Ra8 {[%clk 0:00:23]} 26. Nd3 {[%clk 0:00:19]}  Qd6 {[%clk 0:00:16]} 27. Qe2 {[%clk 0:00:18]}  Ra3 {[%clk 0:00:13]} 28. Ne5 {[%clk 0:00:03]}  f6 {[%clk 0:00:12]} 29. Nxc4 {[%clk 0:00:03]}  Nxc3 {[%clk 0:00:09]} 30. Nxd6 {[%clk 0:00:01]}  Nxe2+ {[%clk 0:00:10]} 31. Rxe2 {[%clk 0:00:02]}  e5 {[%clk 0:00:08]} 32. dxe5 {[%clk 0:00:02]}  fxe5 {[%clk 0:00:08]} 33. Rc8# {[%clk 0:00:03]} 1-0


[Site "https://www.chess.com"]

[Event "Titled Tuesday Blitz November 22 Late 2022"]
[White "Rodriguez Santiago, Jaime"]
[Black "Toncheva, Nadya"]
[WhiteFideId "3100898"]
[BlackFideId "2924056"]
[WhiteElo "2025"]
[BlackElo "2101"]
[Result "1-0"]
[Round "02"]
[TimeControl "180+1"]
[Date "2022.11.23"]
[WhiteClock "0:00:36"]
[BlackClock "0:00:02"]

1. c4 {[%clk 0:02:57]}  c5 {[%clk 0:03:00]} 2. Nc3 {[%clk 0:02:57]}  g6 {[%clk 0:02:59]} 3. g3 {[%clk 0:02:57]}  Bg7 {[%clk 0:02:59]} 4. Bg2 {[%clk 0:02:58]}  e6 {[%clk 0:02:59]} 5. e4 {[%clk 0:02:58]}  Ne7 {[%clk 0:02:59]} 6. Nge2 {[%clk 0:02:58]}  Nbc6 {[%clk 0:02:59]} 7. d3 {[%clk 0:02:59]}  O-O {[%clk 0:03:00]} 8. O-O {[%clk 0:02:59]}  d6 {[%clk 0:02:59]} 9. a3 {[%clk 0:02:58]}  Nd4 {[%clk 0:02:57]} 10. Rb1 {[%clk 0:02:58]}  a5 {[%clk 0:02:55]} 11. Be3 {[%clk 0:02:56]}  e5 {[%clk 0:02:49]} 12. f4 {[%clk 0:02:52]}  Bg4 {[%clk 0:02:40]} 13. h3 {[%clk 0:02:52]}  Bxe2 {[%clk 0:02:25]} 14. Nxe2 {[%clk 0:02:53]}  Nec6 {[%clk 0:02:22]} 15. f5 {[%clk 0:02:49]}  Kh8 {[%clk 0:01:40]} 16. Kh2 {[%clk 0:02:18]}  Rg8 {[%clk 0:01:27]} 17. g4 {[%clk 0:02:10]}  gxf5 {[%clk 0:01:26]} 18. exf5 {[%clk 0:02:07]}  Bf6 {[%clk 0:01:23]} 19. Ng3 {[%clk 0:02:04]}  Bg5 {[%clk 0:01:13]} 20. Bxg5 {[%clk 0:01:29]}  Qxg5 {[%clk 0:01:14]} 21. Ne4 {[%clk 0:01:29]}  Qe7 {[%clk 0:00:51]} 22. f6 {[%clk 0:01:28]}  Qd7 {[%clk 0:00:44]} 23. g5 {[%clk 0:01:25]}  Rg6 {[%clk 0:00:37]} 24. Qh5 {[%clk 0:01:22]}  Ne6 {[%clk 0:00:35]} 25. Qg4 {[%clk 0:01:09]}  Rag8 {[%clk 0:00:29]} 26. h4 {[%clk 0:01:09]}  Ncd4 {[%clk 0:00:11]} 27. Bh3 {[%clk 0:01:06]}  Qa4 {[%clk 0:00:09]} 28. Rf2 {[%clk 0:01:02]}  Qc6 {[%clk 0:00:08]} 29. Qh5 {[%clk 0:00:59]}  Nf4 {[%clk 0:00:07]} 30. Rxf4 {[%clk 0:00:55]}  exf4 {[%clk 0:00:08]} 31. Rf1 {[%clk 0:00:50]}  f3 {[%clk 0:00:07]} 32. Rf2 {[%clk 0:00:49]}  Re8 {[%clk 0:00:07]} 33. Qg4 {[%clk 0:00:47]}  b5 {[%clk 0:00:02]} 34. h5 {[%clk 0:00:46]}  Rgg8 {[%clk 0:00:02]} 35. b3 {[%clk 0:00:44]}  d5 {[%clk 0:00:02]} 36. Ng3 {[%clk 0:00:36]} 1-0


[Site "https://www.chess.com"]

[Event "Titled Tuesday Blitz November 22 Late 2022"]
[White "Romero Ruscalleda, Josep"]
[Black "Jegorovas, Aleksandras"]
[WhiteFideId "2231859"]
[BlackFideId "12801950"]
[WhiteElo "2183"]
[BlackElo "2247"]
[Result "0-1"]
[Round "02"]
[TimeControl "180+1"]
[Date "2022.11.23"]
[WhiteClock "0:01:40"]
[BlackClock "0:01:36"]

1. e4 {[%clk 0:03:00]}  e6 {[%clk 0:02:59]} 2. d4 {[%clk 0:03:00]}  d5 {[%clk 0:02:59]} 3. e5 {[%clk 0:03:01]}  c5 {[%clk 0:02:59]} 4. c3 {[%clk 0:03:02]}  Nc6 {[%clk 0:02:59]} 5. Be3 {[%clk 0:03:02]}  f6 {[%clk 0:02:54]} 6. Nf3 {[%clk 0:03:01]}  fxe5 {[%clk 0:02:50]} 7. Nxe5 {[%clk 0:03:01]}  Nxe5 {[%clk 0:02:50]} 8. dxe5 {[%clk 0:03:00]}  Ne7 {[%clk 0:02:50]} 9. Bd3 {[%clk 0:03:00]}  Nf5 {[%clk 0:02:49]} 10. Bxf5 {[%clk 0:02:52]}  exf5 {[%clk 0:02:48]} 11. O-O {[%clk 0:02:51]}  Be6 {[%clk 0:02:47]} 12. Na3 {[%clk 0:02:47]}  Be7 {[%clk 0:02:43]} 13. Qa4+ {[%clk 0:02:45]}  Qd7 {[%clk 0:02:40]} 14. Qxd7+ {[%clk 0:02:32]}  Kxd7 {[%clk 0:02:40]} 15. Rfd1 {[%clk 0:02:32]}  Kc6 {[%clk 0:02:36]} 16. Nc2 {[%clk 0:02:25]}  a5 {[%clk 0:02:31]} 17. f4 {[%clk 0:02:19]}  a4 {[%clk 0:02:23]} 18. b4 {[%clk 0:02:16]}  axb3 {[%clk 0:02:22]} 19. axb3 {[%clk 0:02:16]}  h6 {[%clk 0:02:17]} 20. b4 {[%clk 0:02:14]}  b6 {[%clk 0:01:58]} 21. Rdb1 {[%clk 0:02:04]}  g5 {[%clk 0:01:49]} 22. g3 {[%clk 0:01:58]}  gxf4 {[%clk 0:01:47]} 23. gxf4 {[%clk 0:01:52]}  Rhg8+ {[%clk 0:01:46]} 24. Kf2 {[%clk 0:01:51]}  Bh4+ {[%clk 0:01:45]} 25. Kf1 {[%clk 0:01:47]}  Rxa1 {[%clk 0:01:38]} 26. Rxa1 {[%clk 0:01:45]}  d4 {[%clk 0:01:38]} 27. cxd4 {[%clk 0:01:40]}  Bc4# {[%clk 0:01:36]} 0-1


[Site "https://www.chess.com"]

[Event "Titled Tuesday Blitz November 22 Late 2022"]
[White "Rosen, Eric"]
[Black "Swiercz, Dariusz"]
[WhiteFideId "2032562"]
[BlackFideId "1126881"]
[WhiteElo "2362"]
[BlackElo "2627"]
[Result "1-0"]
[Round "02"]
[TimeControl "180+1"]
[Date "2022.11.22"]
[WhiteClock "0:00:34"]
[BlackClock "0:00:01"]

1. d4 {[%clk 0:02:47]}  d6 {[%clk 0:03:00]} 2. e4 {[%clk 0:02:45]}  Nf6 {[%clk 0:03:00]} 3. Nc3 {[%clk 0:02:45]}  g6 {[%clk 0:02:59]} 4. Bf4 {[%clk 0:02:42]}  Bg7 {[%clk 0:02:58]} 5. Qd2 {[%clk 0:02:41]}  Nc6 {[%clk 0:02:58]} 6. O-O-O {[%clk 0:02:34]}  O-O {[%clk 0:02:55]} 7. f3 {[%clk 0:02:11]}  Re8 {[%clk 0:02:17]} 8. Bb5 {[%clk 0:01:55]}  Bd7 {[%clk 0:02:09]} 9. e5 {[%clk 0:01:37]}  Nh5 {[%clk 0:01:58]} 10. Bh6 {[%clk 0:01:37]}  a6 {[%clk 0:01:15]} 11. Bxc6 {[%clk 0:01:19]}  Bxc6 {[%clk 0:01:16]} 12. g4 {[%clk 0:01:18]}  Bxh6 {[%clk 0:01:02]} 13. Qxh6 {[%clk 0:01:18]}  Ng7 {[%clk 0:01:03]} 14. Nh3 {[%clk 0:01:12]}  f6 {[%clk 0:00:58]} 15. d5 {[%clk 0:01:12]}  Bb5 {[%clk 0:00:52]} 16. a4 {[%clk 0:01:04]}  Bc4 {[%clk 0:00:30]} 17. e6 {[%clk 0:00:54]}  c6 {[%clk 0:00:26]} 18. Ne4 {[%clk 0:00:38]}  Qb6 {[%clk 0:00:08]} 19. Rhe1 {[%clk 0:00:33]}  cxd5 {[%clk 0:00:02]} 20. Neg5 {[%clk 0:00:33]}  fxg5 {[%clk 0:00:01]} 21. Nxg5 {[%clk 0:00:34]} 1-0


[Site "https://www.chess.com"]

[Event "Titled Tuesday Blitz November 22 Late 2022"]
[White "Sarana, Alexey"]
[Black "Hjartarson, Johann"]
[WhiteFideId "24133795"]
[BlackFideId "2300044"]
[WhiteElo "2708"]
[BlackElo "2458"]
[Result "1-0"]
[Round "02"]
[TimeControl "180+1"]
[Date "2022.11.22"]
[WhiteClock "0:01:06"]
[BlackClock "0:00:11"]

1. c4 {[%clk 0:03:00]}  e5 {[%clk 0:02:58]} 2. Nc3 {[%clk 0:03:00]}  Nf6 {[%clk 0:02:58]} 3. Nf3 {[%clk 0:03:00]}  Nc6 {[%clk 0:02:57]} 4. g3 {[%clk 0:03:00]}  Nd4 {[%clk 0:02:55]} 5. Bg2 {[%clk 0:03:00]}  Nxf3+ {[%clk 0:02:54]} 6. Bxf3 {[%clk 0:03:01]}  Bb4 {[%clk 0:02:54]} 7. Qb3 {[%clk 0:02:59]}  Bc5 {[%clk 0:02:53]} 8. Na4 {[%clk 0:02:54]}  Be7 {[%clk 0:02:52]} 9. d4 {[%clk 0:02:54]}  exd4 {[%clk 0:02:49]} 10. O-O {[%clk 0:02:54]}  O-O {[%clk 0:02:45]} 11. Rd1 {[%clk 0:02:54]}  d6 {[%clk 0:02:28]} 12. Rxd4 {[%clk 0:02:53]}  Rb8 {[%clk 0:02:15]} 13. Be3 {[%clk 0:02:50]}  b6 {[%clk 0:02:10]} 14. Nc3 {[%clk 0:02:46]}  Be6 {[%clk 0:02:01]} 15. Nd5 {[%clk 0:02:45]}  Bxd5 {[%clk 0:01:57]} 16. cxd5 {[%clk 0:02:46]}  Nd7 {[%clk 0:01:57]} 17. Qc2 {[%clk 0:02:41]}  Bf6 {[%clk 0:01:55]} 18. Rc4 {[%clk 0:02:40]}  Nc5 {[%clk 0:01:54]} 19. Rd1 {[%clk 0:02:32]}  a5 {[%clk 0:01:52]} 20. b3 {[%clk 0:02:25]}  Re8 {[%clk 0:01:51]} 21. a3 {[%clk 0:02:23]}  Rxe3 {[%clk 0:01:43]} 22. fxe3 {[%clk 0:02:24]}  Qe7 {[%clk 0:01:42]} 23. b4 {[%clk 0:02:23]}  Qxe3+ {[%clk 0:01:40]} 24. Kg2 {[%clk 0:02:23]}  Na6 {[%clk 0:01:35]} 25. Rd3 {[%clk 0:02:17]}  Qe8 {[%clk 0:01:32]} 26. Re4 {[%clk 0:02:11]}  Qd7 {[%clk 0:01:26]} 27. Qc4 {[%clk 0:02:05]}  b5 {[%clk 0:01:23]} 28. Qc2 {[%clk 0:02:05]}  axb4 {[%clk 0:01:21]} 29. axb4 {[%clk 0:02:05]}  g6 {[%clk 0:01:07]} 30. Bg4 {[%clk 0:02:03]}  Qd8 {[%clk 0:01:05]} 31. Qc6 {[%clk 0:02:03]}  h5 {[%clk 0:00:58]} 32. Rde3 {[%clk 0:01:56]}  Be5 {[%clk 0:00:50]} 33. Bh3 {[%clk 0:01:53]}  Rb6 {[%clk 0:00:47]} 34. Qc2 {[%clk 0:01:53]}  Qa8 {[%clk 0:00:36]} 35. Rd3 {[%clk 0:01:44]}  c5 {[%clk 0:00:35]} 36. Be6 {[%clk 0:01:20]}  fxe6 {[%clk 0:00:27]} 37. Rf3 {[%clk 0:01:18]}  Qxd5 {[%clk 0:00:20]} 38. Rxe5 {[%clk 0:01:15]}  dxe5 {[%clk 0:00:19]} 39. Qxg6+ {[%clk 0:01:14]}  Kh8 {[%clk 0:00:19]} 40. Qxh5+ {[%clk 0:01:14]}  Kg7 {[%clk 0:00:19]} 41. Qf7+ {[%clk 0:01:14]}  Kh8 {[%clk 0:00:19]} 42. Qf6+ {[%clk 0:01:14]}  Kg8 {[%clk 0:00:18]} 43. Qg6+ {[%clk 0:01:14]}  Kh8 {[%clk 0:00:18]} 44. Qe8+ {[%clk 0:01:06]}  Kg7 {[%clk 0:00:17]} 45. Qe7+ {[%clk 0:01:07]}  Kg8 {[%clk 0:00:14]} 46. Kh3 {[%clk 0:01:06]}  Rb8 {[%clk 0:00:13]} 47. Qf7+ {[%clk 0:01:05]}  Kh8 {[%clk 0:00:12]} 48. Qh5+ {[%clk 0:01:05]}  Kg8 {[%clk 0:00:12]} 49. Qg6+ {[%clk 0:01:06]}  Kh8 {[%clk 0:00:11]} 50. Rf7 {[%clk 0:01:06]} 1-0


[Site "https://www.chess.com"]